[Event "Live Chess"]
[Site "Chess.com"]
[Date "2024.06.01"]
[Round "-"]
[White "febray_27"]
[Black "JanMur7"]
[Result "0-1"]
[WhiteElo "1999"]
[BlackElo "2316"]
[TimeControl "300"]
[EndTime "12:59:30 PDT"]
[Termination "JanMur7 won by resignation"]

1. Nf3 {[%clk 0:04:49.4]} 1... Nf6 {[%clk 0:04:58.9]} 2. d4 {[%clk 0:04:47]}
2... d5 {[%clk 0:04:58.2]} 3. g3 {[%clk 0:04:46.5]} 3... e6 {[%clk 0:04:55]} 4.
Bg2 {[%clk 0:04:45.8]} 4... b6 {[%clk 0:04:49.5]} 5. O-O {[%clk 0:04:45.7]} 5...
Bb7 {[%clk 0:04:48.6]} 6. c4 {[%clk 0:04:45.2]} 6... dxc4 {[%clk 0:04:47.4]} 7.
Qa4+ {[%clk 0:04:44.3]} 7... Nbd7 {[%clk 0:04:45.8]} 8. Qxc4 {[%clk 0:04:43.2]}
8... Be7 {[%clk 0:04:45.1]} 9. Nc3 {[%clk 0:04:42.2]} 9... O-O {[%clk
0:04:42.8]} 10. Bf4 {[%clk 0:04:41.6]} 10... Rc8 {[%clk 0:04:41]} 11. Rfd1
{[%clk 0:04:41]} 11... c5 {[%clk 0:04:35.4]} 12. dxc5 {[%clk 0:04:40.1]} 12...
Bxc5 {[%clk 0:04:32.9]} 13. Qa4 {[%clk 0:04:34.7]} 13... a5 {[%clk 0:04:26.8]}
14. Bg5 {[%clk 0:04:33]} 14... Qe7 {[%clk 0:04:22.8]} 15. Rac1 {[%clk
0:04:19.4]} 15... h6 {[%clk 0:04:18.6]} 16. Bf4 {[%clk 0:04:17.5]} 16... Nd5
{[%clk 0:04:11.7]} 17. Nxd5 {[%clk 0:04:15.2]} 17... Bxd5 {[%clk 0:04:06.9]} 18.
a3 {[%clk 0:04:05.2]} 18... Nf6 {[%clk 0:03:47.9]} 19. Be5 {[%clk 0:03:25.3]}
19... Rfd8 {[%clk 0:03:40.8]} 20. Bxf6 {[%clk 0:03:03.7]} 20... Qxf6 {[%clk
0:03:40.7]} 21. b4 {[%clk 0:03:02.5]} 21... axb4 {[%clk 0:03:28.1]} 22. axb4
{[%clk 0:03:00.6]} 22... Bf8 {[%clk 0:03:27.1]} 23. Rxc8 {[%clk 0:02:50.2]}
23... Rxc8 {[%clk 0:03:20.7]} 24. Qa6 {[%clk 0:02:32.2]} 24... Rb8 {[%clk
0:03:11.3]} 25. Qa7 {[%clk 0:02:23.1]} 25... Qd8 {[%clk 0:02:56]} 26. Ne5 {[%clk
0:01:53.2]} 26... Ra8 {[%clk 0:02:41.5]} 27. Qxf7+ {[%clk 0:01:51.1]} 27... Kh7
{[%clk 0:02:28.8]} 28. Be4+ {[%clk 0:01:40.4]} 28... Bxe4 {[%clk 0:02:24]} 29.
Rxd8 {[%clk 0:01:38.7]} 29... Ra1+ {[%clk 0:02:22.1]} 0-1

[Event "Live Chess"]
[Site "Chess.com"]
[Date "2024.06.01"]
[Round "-"]
[White "jimwad"]
[Black "KwikPhoenix"]
[Result "0-1"]
[WhiteElo "1269"]
[BlackElo "2463"]
[TimeControl "300"]
[EndTime "12:59:40 PDT"]
[Termination "KwikPhoenix won by resignation"]

1. d4 {[%clk 0:04:59.2]} 1... e5 {[%clk 0:04:57]} 2. dxe5 {[%clk 0:04:57.8]}
2... Nc6 {[%clk 0:04:56.2]} 3. Nf3 {[%clk 0:04:56]} 3... Qe7 {[%clk 0:04:55.6]}
4. Bf4 {[%clk 0:04:52.3]} 4... Qb4+ {[%clk 0:04:51.8]} 5. Bd2 {[%clk 0:04:49.9]}
5... Qxb2 {[%clk 0:04:50.9]} 6. Bc3 {[%clk 0:04:47]} 6... Bb4 {[%clk 0:04:49.3]}
7. Qd2 {[%clk 0:04:28]} 7... Bxc3 {[%clk 0:04:47.3]} 8. Nxc3 {[%clk 0:04:22.5]}
8... Qxa1+ {[%clk 0:04:45.9]} 9. Nd1 {[%clk 0:04:20.7]} 9... Nxe5 {[%clk
0:04:44.2]} 10. Nxe5 {[%clk 0:04:19.3]} 10... Qxe5 {[%clk 0:04:44.1]} 0-1

[Event "Live Chess"]
[Site "Chess.com"]
[Date "2024.06.01"]
[Round "-"]
[White "TigerTank70"]
[Black "Dhaydon19"]
[Result "1-0"]
[WhiteElo "2213"]
[BlackElo "2667"]
[TimeControl "300"]
[EndTime "12:59:42 PDT"]
[Termination "TigerTank70 won by resignation"]

1. e4 {[%clk 0:04:57.2]} 1... c6 {[%clk 0:04:52]} 2. d4 {[%clk 0:04:55.4]} 2...
d5 {[%clk 0:04:51.6]} 3. e5 {[%clk 0:04:52.4]} 3... c5 {[%clk 0:04:50]} 4. c3
{[%clk 0:04:51.2]} 4... cxd4 {[%clk 0:04:49.7]} 5. cxd4 {[%clk 0:04:50]} 5...
Nc6 {[%clk 0:04:49.4]} 6. Nc3 {[%clk 0:04:46.9]} 6... e6 {[%clk 0:04:47.8]} 7.
Nf3 {[%clk 0:04:38.4]} 7... Nge7 {[%clk 0:04:45.5]} 8. Qb3 {[%clk 0:04:28.5]}
8... Nf5 {[%clk 0:04:43.9]} 9. Be3 {[%clk 0:04:27.1]} 9... Nxe3 {[%clk
0:04:42.8]} 10. fxe3 {[%clk 0:04:26.1]} 10... Be7 {[%clk 0:04:42.5]} 11. Be2
{[%clk 0:04:13]} 11... O-O {[%clk 0:04:40.6]} 12. O-O {[%clk 0:04:11.6]} 12...
f6 {[%clk 0:04:39.5]} 13. Bb5 {[%clk 0:03:59.3]} 13... f5 {[%clk 0:04:33.8]} 14.
Ne2 {[%clk 0:03:45.1]} 14... Bd7 {[%clk 0:04:31.4]} 15. Nf4 {[%clk 0:03:39.5]}
15... g5 {[%clk 0:04:30.2]} 16. Nxd5 {[%clk 0:03:35.7]} 16... exd5 {[%clk
0:04:27.1]} 17. Qxd5+ {[%clk 0:03:35.4]} 17... Kg7 {[%clk 0:04:26.2]} 18. e6
{[%clk 0:03:18.8]} 18... Be8 {[%clk 0:04:23.6]} 19. Bxc6 {[%clk 0:03:17.5]}
19... Bxc6 {[%clk 0:04:19.6]} 20. Qe5+ {[%clk 0:03:15.9]} 20... Kg6 {[%clk
0:04:15.8]} 21. Qg3 {[%clk 0:02:29.7]} 21... Bd6 {[%clk 0:04:05.8]} 22. Nh4+
{[%clk 0:02:05.6]} 22... Kh6 {[%clk 0:04:03.3]} 23. Nxf5+ {[%clk 0:02:01.7]}
23... Rxf5 {[%clk 0:04:00.6]} 24. Qh3+ {[%clk 0:02:00.9]} 24... Kg7 {[%clk
0:03:59.6]} 25. Rxf5 {[%clk 0:01:53.3]} 25... Be8 {[%clk 0:03:56.2]} 26. Raf1
{[%clk 0:01:43.8]} 26... Bg6 {[%clk 0:03:53.7]} 27. Rf7+ {[%clk 0:01:39.2]}
27... Kg8 {[%clk 0:03:51.2]} 28. Qh6 {[%clk 0:01:22.4]} 28... Bf8 {[%clk
0:03:49.8]} 29. Rxf8+ {[%clk 0:01:19.5]} 29... Qxf8 {[%clk 0:03:48.6]} 30. Rxf8+
{[%clk 0:01:18.2]} 30... Rxf8 {[%clk 0:03:48.3]} 31. e7 {[%clk 0:01:16.8]} 31...
Re8 {[%clk 0:03:46.8]} 32. Qxg5 {[%clk 0:01:15.6]} 32... Kf7 {[%clk 0:03:46.1]}
33. e4 {[%clk 0:01:11.8]} 33... Rxe7 {[%clk 0:03:42.5]} 34. e5 {[%clk
0:01:09.7]} 34... Ke6 {[%clk 0:03:36.5]} 35. d5+ {[%clk 0:01:05]} 35... Kd7
{[%clk 0:03:34]} 36. Qg4+ {[%clk 0:00:56.3]} 36... Kd8 {[%clk 0:03:28.8]} 37. e6
{[%clk 0:00:51.7]} 37... Rc7 {[%clk 0:03:20.5]} 38. h4 {[%clk 0:00:49.2]} 38...
Ke7 {[%clk 0:03:13.5]} 39. Qf4 {[%clk 0:00:46.3]} 39... Rc2 {[%clk 0:03:08.3]}
40. Qe5 {[%clk 0:00:43.6]} 40... Rd2 {[%clk 0:03:03.1]} 41. Qc7+ {[%clk
0:00:41.5]} 41... Kf6 {[%clk 0:03:01.6]} 42. Qf4+ {[%clk 0:00:37]} 42... Ke7
{[%clk 0:03:00.4]} 43. Qxd2 {[%clk 0:00:36.5]} 1-0

[Event "Live Chess"]
[Site "Chess.com"]
[Date "2024.06.01"]
[Round "-"]
[White "LL220284LL"]
[Black "Pedrada88"]
[Result "0-1"]
[WhiteElo "2543"]
[BlackElo "2543"]
[TimeControl "300"]
[EndTime "12:59:43 PDT"]
[Termination "Pedrada88 won by checkmate"]

1. g3 {[%clk 0:04:58.2]} 1... d5 {[%clk 0:04:58.8]} 2. Bg2 {[%clk 0:04:58.1]}
2... c6 {[%clk 0:04:58.1]} 3. Nf3 {[%clk 0:04:57.8]} 3... Nf6 {[%clk 0:04:57.6]}
4. O-O {[%clk 0:04:57.7]} 4... Nbd7 {[%clk 0:04:56.3]} 5. b3 {[%clk 0:04:57.6]}
5... e5 {[%clk 0:04:55.7]} 6. Bb2 {[%clk 0:04:56.6]} 6... Bd6 {[%clk 0:04:54.4]}
7. d3 {[%clk 0:04:55.7]} 7... O-O {[%clk 0:04:52]} 8. Nbd2 {[%clk 0:04:53.8]}
8... Re8 {[%clk 0:04:51.3]} 9. e4 {[%clk 0:04:50.9]} 9... b6 {[%clk 0:04:48.4]}
10. exd5 {[%clk 0:04:47.6]} 10... cxd5 {[%clk 0:04:47.6]} 11. Re1 {[%clk
0:04:47.1]} 11... Bb7 {[%clk 0:04:46.8]} 12. Nh4 {[%clk 0:04:37.9]} 12... g6
{[%clk 0:04:44.2]} 13. Nf1 {[%clk 0:04:27.1]} 13... Rc8 {[%clk 0:04:42.3]} 14.
Ne3 {[%clk 0:04:24.8]} 14... Qc7 {[%clk 0:04:37.4]} 15. Rc1 {[%clk 0:04:22.6]}
15... d4 {[%clk 0:04:36]} 16. Ng4 {[%clk 0:04:11.4]} 16... Bxg2 {[%clk
0:04:32.6]} 17. Kxg2 {[%clk 0:04:07.9]} 17... Qc6+ {[%clk 0:04:29.7]} 18. Kg1
{[%clk 0:04:04.4]} 18... Bb4 {[%clk 0:04:10.5]} 19. Rf1 {[%clk 0:03:58.4]} 19...
Nd5 {[%clk 0:03:57.2]} 20. Qf3 {[%clk 0:03:56.7]} 20... f5 {[%clk 0:03:41.1]}
21. Nxf5 {[%clk 0:03:55.6]} 21... gxf5 {[%clk 0:03:36.3]} 22. Qxf5 {[%clk
0:03:48.8]} 22... Ne7 {[%clk 0:03:25.8]} 23. Qh5 {[%clk 0:03:39.6]} 23... Qg6
{[%clk 0:03:21.7]} 24. Qh3 {[%clk 0:03:32.7]} 24... h5 {[%clk 0:03:14.8]} 25.
Nh6+ {[%clk 0:03:27.3]} 25... Qxh6 {[%clk 0:03:13.8]} 26. Qxd7 {[%clk 0:03:27]}
26... Bd2 {[%clk 0:03:09.1]} 27. Rcd1 {[%clk 0:03:22.5]} 27... Bg5 {[%clk
0:03:04.9]} 28. Ba3 {[%clk 0:03:13.1]} 28... h4 {[%clk 0:02:50.9]} 29. Rde1
{[%clk 0:03:05.2]} 29... Bf6 {[%clk 0:02:43.8]} 30. Bxe7 {[%clk 0:03:00.7]}
30... Bxe7 {[%clk 0:02:39.7]} 31. Rxe5 {[%clk 0:02:58.9]} 31... Rcd8 {[%clk
0:02:32.5]} 32. Qxd8 {[%clk 0:02:45.6]} 32... Rxd8 {[%clk 0:02:26]} 33. Rxe7
{[%clk 0:02:43.6]} 33... h3 {[%clk 0:02:24.7]} 34. Rfe1 {[%clk 0:02:39.7]} 34...
Rf8 {[%clk 0:02:18.3]} 35. R7e4 {[%clk 0:02:35.2]} 35... Rf7 {[%clk 0:01:58.5]}
36. Rg4+ {[%clk 0:02:24.5]} 36... Kf8 {[%clk 0:01:53.8]} 37. Rxd4 {[%clk
0:02:18.9]} 37... Qc6 {[%clk 0:01:50.1]} 38. Rde4 {[%clk 0:02:13.1]} 38... Qxc2
{[%clk 0:01:47.4]} 39. Re8+ {[%clk 0:02:08.5]} 39... Kg7 {[%clk 0:01:46.2]} 40.
Rf1 {[%clk 0:02:06.4]} 40... Qxa2 {[%clk 0:01:41.4]} 41. Re4 {[%clk 0:02:02.3]}
41... Qxb3 {[%clk 0:01:39.8]} 42. Rh4 {[%clk 0:02:00.4]} 42... Qe6 {[%clk
0:01:36.8]} 43. Re4 {[%clk 0:01:58.3]} 43... Qd5 {[%clk 0:01:35.5]} 44. Rg4+
{[%clk 0:01:53.2]} 44... Kf8 {[%clk 0:01:34.2]} 45. Rh4 {[%clk 0:01:52.2]} 45...
Qg2# {[%clk 0:01:32.8]} 0-1

[Event "Live Chess"]
[Site "Chess.com"]
[Date "2024.06.01"]
[Round "-"]
[White "MagnersCarlsberg2870"]
[Black "nigelst"]
[Result "0-1"]
[WhiteElo "1819"]
[BlackElo "1648"]
[TimeControl "300"]
[EndTime "13:00:05 PDT"]
[Termination "nigelst won by resignation"]

1. e4 {[%clk 0:04:55.5]} 1... c6 {[%clk 0:04:58.9]} 2. d3 {[%clk 0:04:51.7]}
2... d5 {[%clk 0:04:57.5]} 3. Nd2 {[%clk 0:04:50.7]} 3... e5 {[%clk 0:04:55.2]}
4. Ngf3 {[%clk 0:04:49.4]} 4... Nd7 {[%clk 0:04:51.8]} 5. h3 {[%clk 0:04:47.6]}
5... Ngf6 {[%clk 0:04:50.7]} 6. Be2 {[%clk 0:04:45]} 6... Bd6 {[%clk 0:04:49.4]}
7. O-O {[%clk 0:04:44]} 7... O-O {[%clk 0:04:47.9]} 8. c3 {[%clk 0:04:42.3]}
8... b6 {[%clk 0:04:46.4]} 9. exd5 {[%clk 0:04:40.3]} 9... cxd5 {[%clk
0:04:44.6]} 10. c4 {[%clk 0:04:38.5]} 10... Bb7 {[%clk 0:04:41.4]} 11. cxd5
{[%clk 0:04:37]} 11... Bxd5 {[%clk 0:04:38]} 12. Nc4 {[%clk 0:04:30.6]} 12...
Bxc4 {[%clk 0:04:34.3]} 13. dxc4 {[%clk 0:04:29.2]} 13... Nc5 {[%clk 0:04:31.6]}
14. Bg5 {[%clk 0:04:27.3]} 14... Be7 {[%clk 0:04:30]} 15. Qxd8 {[%clk
0:04:25.2]} 15... Rfxd8 {[%clk 0:04:27.9]} 16. Nxe5 {[%clk 0:04:23.5]} 16...
Nce4 {[%clk 0:04:21.4]} 17. Bxf6 {[%clk 0:04:19.4]} 17... Bxf6 {[%clk
0:04:19.4]} 18. Nf3 {[%clk 0:04:10.2]} 18... Nd2 {[%clk 0:04:10.1]} 19. Rfd1
{[%clk 0:04:04.5]} 19... Nxf3+ {[%clk 0:04:07.6]} 20. Bxf3 {[%clk 0:04:03.5]}
20... Rab8 {[%clk 0:04:03]} 21. Bd5 {[%clk 0:03:54.2]} 21... Bxb2 {[%clk
0:03:58.8]} 22. Rab1 {[%clk 0:03:52.3]} 22... Bf6 {[%clk 0:03:54]} 23. f3 {[%clk
0:03:49.5]} 23... g6 {[%clk 0:03:52.5]} 24. Kf2 {[%clk 0:03:48.2]} 24... Kg7
{[%clk 0:03:51.5]} 25. a4 {[%clk 0:03:45.4]} 25... Re8 {[%clk 0:03:45.1]} 26.
Re1 {[%clk 0:03:43.7]} 26... Kf8 {[%clk 0:03:41.2]} 27. Rxe8+ {[%clk 0:03:41.4]}
27... Rxe8 {[%clk 0:03:39.5]} 28. Re1 {[%clk 0:03:35.8]} 28... Bh4+ {[%clk
0:03:38]} 29. g3 {[%clk 0:03:34.5]} 29... Bxg3+ {[%clk 0:03:36.9]} 30. Kxg3
{[%clk 0:03:32.2]} 30... Rxe1 {[%clk 0:03:35.6]} 31. Kf2 {[%clk 0:03:30.6]}
31... Ra1 {[%clk 0:03:30.8]} 32. Bc6 {[%clk 0:03:27.5]} 32... Ke7 {[%clk
0:03:22.9]} 33. Kg3 {[%clk 0:03:23.7]} 33... Kd6 {[%clk 0:03:21.9]} 34. Bb5
{[%clk 0:03:22]} 0-1

[Event "Live Chess"]
[Site "Chess.com"]
[Date "2024.06.01"]
[Round "-"]
[White "Silverback7829"]
[Black "f4nomore"]
[Result "0-1"]
[WhiteElo "998"]
[BlackElo "1206"]
[TimeControl "300"]
[EndTime "13:00:16 PDT"]
[Termination "f4nomore won by checkmate"]

1. d4 {[%clk 0:04:58.1]} 1... g6 {[%clk 0:04:58.1]} 2. Nf3 {[%clk 0:04:56.7]}
2... Bg7 {[%clk 0:04:57]} 3. Nc3 {[%clk 0:04:54.8]} 3... d6 {[%clk 0:04:55.9]}
4. e3 {[%clk 0:04:53.5]} 4... Nf6 {[%clk 0:04:53.9]} 5. Bb5+ {[%clk 0:04:50.6]}
5... c6 {[%clk 0:04:51.7]} 6. Bd3 {[%clk 0:04:48]} 6... O-O {[%clk 0:04:49.9]}
7. Bd2 {[%clk 0:04:46]} 7... Nbd7 {[%clk 0:04:48.5]} 8. O-O {[%clk 0:04:44.3]}
8... c5 {[%clk 0:04:47.7]} 9. dxc5 {[%clk 0:04:41.4]} 9... Nxc5 {[%clk
0:04:45.9]} 10. Nb5 {[%clk 0:04:36.7]} 10... Nxd3 {[%clk 0:04:41.8]} 11. cxd3
{[%clk 0:04:34.7]} 11... a6 {[%clk 0:04:39.7]} 12. Nbd4 {[%clk 0:04:30.1]} 12...
e5 {[%clk 0:04:35.9]} 13. Nb3 {[%clk 0:04:21]} 13... Be6 {[%clk 0:04:28.4]} 14.
Bb4 {[%clk 0:04:15.4]} 14... Rc8 {[%clk 0:04:24.7]} 15. Ng5 {[%clk 0:04:10.8]}
15... Bxb3 {[%clk 0:04:16]} 16. axb3 {[%clk 0:04:08.7]} 16... h6 {[%clk
0:04:14.6]} 17. Nf3 {[%clk 0:04:05.1]} 17... Nd5 {[%clk 0:04:11.1]} 18. Bd2
{[%clk 0:03:58.4]} 18... f5 {[%clk 0:04:02.2]} 19. Rc1 {[%clk 0:03:55.7]} 19...
Kh7 {[%clk 0:03:49.2]} 20. Rxc8 {[%clk 0:03:52.4]} 20... Qxc8 {[%clk 0:03:46.7]}
21. Qc1 {[%clk 0:03:45.6]} 21... Qd7 {[%clk 0:03:43.8]} 22. Qd1 {[%clk
0:03:41.8]} 22... Rc8 {[%clk 0:03:40.6]} 23. e4 {[%clk 0:03:35.4]} 23... Nf6
{[%clk 0:03:21.3]} 24. exf5 {[%clk 0:03:32.4]} 24... Qxf5 {[%clk 0:03:19]} 25.
Qe2 {[%clk 0:03:23]} 25... Nd5 {[%clk 0:03:09.9]} 26. Bc1 {[%clk 0:03:13.6]}
26... Nb4 {[%clk 0:03:02]} 27. Be3 {[%clk 0:03:06]} 27... Rc2 {[%clk 0:02:45.5]}
28. Bd2 {[%clk 0:02:57.8]} 28... Nxd3 {[%clk 0:02:39.1]} 29. Qd1 {[%clk
0:02:48.9]} 29... Nf4 {[%clk 0:02:26.7]} 30. Qe1 {[%clk 0:02:38]} 30... Qg4
{[%clk 0:02:16.7]} 31. h3 {[%clk 0:02:34.2]} 31... Nxh3+ {[%clk 0:02:12.7]} 32.
Kh2 {[%clk 0:02:21.5]} 32... Nf4 {[%clk 0:02:02]} 33. Qe3 {[%clk 0:02:10.8]}
33... Qxg2# {[%clk 0:01:56.5]} 0-1

[Event "Live Chess"]
[Site "Chess.com"]
[Date "2024.06.01"]
[Round "-"]
[White "booktrunk"]
[Black "bonantagulo"]
[Result "0-1"]
[WhiteElo "1388"]
[BlackElo "2108"]
[TimeControl "300"]
[EndTime "13:00:39 PDT"]
[Termination "bonantagulo won by resignation"]

1. d4 {[%clk 0:04:51.6]} 1... Nf6 {[%clk 0:04:53.6]} 2. a3 {[%clk 0:04:48.4]}
2... d5 {[%clk 0:04:48.1]} 3. Nc3 {[%clk 0:04:34.5]} 3... c5 {[%clk 0:04:46.8]}
4. dxc5 {[%clk 0:04:31.9]} 4... e6 {[%clk 0:04:45]} 5. Bf4 {[%clk 0:04:31.2]}
5... Bxc5 {[%clk 0:04:43.7]} 6. e3 {[%clk 0:04:29.9]} 6... O-O {[%clk
0:04:42.4]} 7. Nf3 {[%clk 0:04:11.7]} 7... Nc6 {[%clk 0:04:39.3]} 8. Ne5 {[%clk
0:04:07.2]} 8... Bd6 {[%clk 0:04:04.2]} 9. Nxc6 {[%clk 0:04:02.6]} 9... bxc6
{[%clk 0:04:04.1]} 10. Bxd6 {[%clk 0:04:00.8]} 10... Qxd6 {[%clk 0:04:04]} 11.
Be2 {[%clk 0:03:57.2]} 11... e5 {[%clk 0:03:56.1]} 12. O-O {[%clk 0:03:55.1]}
12... Rb8 {[%clk 0:03:53.6]} 13. b3 {[%clk 0:03:52]} 13... Bf5 {[%clk
0:03:47.3]} 14. f3 {[%clk 0:03:48.9]} 14... Rfd8 {[%clk 0:03:26.9]} 15. Qe1
{[%clk 0:03:39.7]} 15... Bxc2 {[%clk 0:03:14.6]} 16. Bd1 {[%clk 0:03:38.7]}
16... Bxb3 {[%clk 0:03:08.4]} 17. Bxb3 {[%clk 0:03:37.8]} 17... Rxb3 {[%clk
0:03:08.3]} 18. Ne2 {[%clk 0:03:36.1]} 0-1

[Event "Live Chess"]
[Site "Chess.com"]
[Date "2024.06.01"]
[Round "-"]
[White "jimwad"]
[Black "TigerTank70"]
[Result "0-1"]
[WhiteElo "1269"]
[BlackElo "2213"]
[TimeControl "300"]
[EndTime "13:00:49 PDT"]
[Termination "TigerTank70 won by resignation"]

1. d4 {[%clk 0:04:59.5]} 1... d5 {[%clk 0:04:58.8]} 2. c4 {[%clk 0:04:58.4]}
2... e5 {[%clk 0:04:57.7]} 3. dxe5 {[%clk 0:04:56]} 3... d4 {[%clk 0:04:57]} 4.
e3 {[%clk 0:04:51.3]} 4... Bb4+ {[%clk 0:04:54.7]} 5. Bd2 {[%clk 0:04:49]} 5...
dxe3 {[%clk 0:04:54.3]} 6. Bxb4 {[%clk 0:04:48]} 6... exf2+ {[%clk 0:04:53.2]}
7. Ke2 {[%clk 0:04:34.3]} 7... fxg1=N+ {[%clk 0:04:50.6]} 8. Rxg1 {[%clk
0:04:33.4]} 8... Bg4+ {[%clk 0:04:49.5]} 9. Ke3 {[%clk 0:04:22.2]} 9... Bxd1
{[%clk 0:04:47.6]} 10. Nc3 {[%clk 0:04:18.8]} 10... Bh5 {[%clk 0:04:45.1]} 0-1

[Event "Live Chess"]
[Site "Chess.com"]
[Date "2024.06.01"]
[Round "-"]
[White "LanceMaster23"]
[Black "NeilDruggan73"]
[Result "1-0"]
[WhiteElo "1844"]
[BlackElo "1749"]
[TimeControl "300"]
[EndTime "13:01:08 PDT"]
[Termination "LanceMaster23 won by resignation"]

1. Nf3 {[%clk 0:04:56.9]} 1... Nf6 {[%clk 0:04:53.9]} 2. d4 {[%clk 0:04:56.2]}
2... g6 {[%clk 0:04:51.9]} 3. Bf4 {[%clk 0:04:50.6]} 3... Bg7 {[%clk 0:04:50.8]}
4. e3 {[%clk 0:04:49.6]} 4... d6 {[%clk 0:04:49.2]} 5. Be2 {[%clk 0:04:48.8]}
5... O-O {[%clk 0:04:44.8]} 6. O-O {[%clk 0:04:48.1]} 6... c6 {[%clk 0:04:41.6]}
7. c3 {[%clk 0:04:47]} 7... h6 {[%clk 0:04:40.5]} 8. h3 {[%clk 0:04:45.2]} 8...
Nh5 {[%clk 0:04:32.6]} 9. Bh2 {[%clk 0:04:43.4]} 9... f5 {[%clk 0:04:31.1]} 10.
Nbd2 {[%clk 0:04:42.4]} 10... Nd7 {[%clk 0:04:25.5]} 11. Re1 {[%clk 0:04:37.1]}
11... b5 {[%clk 0:04:24.1]} 12. a4 {[%clk 0:04:35.3]} 12... Ba6 {[%clk
0:04:12.7]} 13. axb5 {[%clk 0:04:14.1]} 13... Bb7 {[%clk 0:04:11.4]} 14. bxc6
{[%clk 0:04:11]} 14... Bxc6 {[%clk 0:04:10.2]} 15. Ra6 {[%clk 0:03:58.9]} 15...
Qc7 {[%clk 0:04:03.9]} 16. Qb3+ {[%clk 0:03:41.6]} 16... Kh7 {[%clk 0:04:01.1]}
17. Qa3 {[%clk 0:03:20.8]} 17... Rfb8 {[%clk 0:03:42.1]} 18. Ra1 {[%clk
0:03:16.4]} 18... Rb7 {[%clk 0:03:33.8]} 19. Nb3 {[%clk 0:02:48.3]} 19... Nb8
{[%clk 0:02:47.3]} 20. Rxc6 {[%clk 0:02:33.7]} 20... Nxc6 {[%clk 0:02:39.1]} 21.
Ba6 {[%clk 0:02:15.7]} 21... Rb6 {[%clk 0:02:28.1]} 22. Nbd2 {[%clk 0:01:48.8]}
22... Rab8 {[%clk 0:02:22.7]} 23. Nc4 {[%clk 0:01:46.5]} 23... Rb3 {[%clk
0:02:18.8]} 24. Qa4 {[%clk 0:01:26.9]} 24... Nf6 {[%clk 0:02:17.6]} 25. Nfd2
{[%clk 0:01:23.6]} 25... R3b7 {[%clk 0:01:30.6]} 26. Bxb7 {[%clk 0:01:19.8]}
26... Rxb7 {[%clk 0:01:30.2]} 27. b4 {[%clk 0:01:03.5]} 27... d5 {[%clk
0:01:15.4]} 28. Bxc7 {[%clk 0:00:57.6]} 1-0

[Event "Live Chess"]
[Site "Chess.com"]
[Date "2024.06.01"]
[Round "-"]
[White "agamilewska"]
[Black "cymbalshift"]
[Result "1-0"]
[WhiteElo "1765"]
[BlackElo "1702"]
[TimeControl "300"]
[EndTime "13:01:21 PDT"]
[Termination "agamilewska won on time"]

1. d4 {[%clk 0:04:57.4]} 1... Nf6 {[%clk 0:04:58.5]} 2. c4 {[%clk 0:04:56.3]}
2... e6 {[%clk 0:04:56.9]} 3. Nc3 {[%clk 0:04:55.8]} 3... c5 {[%clk 0:04:55.5]}
4. e3 {[%clk 0:04:54.1]} 4... Nc6 {[%clk 0:04:50.5]} 5. Nf3 {[%clk 0:04:53.4]}
5... a6 {[%clk 0:04:49]} 6. Be2 {[%clk 0:04:51.6]} 6... d5 {[%clk 0:04:46.2]} 7.
O-O {[%clk 0:04:47.5]} 7... dxc4 {[%clk 0:04:42.5]} 8. Bxc4 {[%clk 0:04:46.7]}
8... b5 {[%clk 0:04:42]} 9. Bb3 {[%clk 0:04:45.5]} 9... Bb7 {[%clk 0:04:41.2]}
10. dxc5 {[%clk 0:04:39.7]} 10... Bxc5 {[%clk 0:04:37.7]} 11. Re1 {[%clk
0:04:23.9]} 11... O-O {[%clk 0:04:29.7]} 12. e4 {[%clk 0:04:22.8]} 12... Qc7
{[%clk 0:04:18.3]} 13. Bg5 {[%clk 0:04:21.2]} 13... Rfd8 {[%clk 0:03:49.2]} 14.
Qc2 {[%clk 0:04:16.8]} 14... Nb4 {[%clk 0:03:36.2]} 15. Qe2 {[%clk 0:03:59.2]}
15... Qb6 {[%clk 0:02:32.6]} 16. Bxf6 {[%clk 0:03:54]} 16... gxf6 {[%clk
0:02:32.5]} 17. Rad1 {[%clk 0:03:35.6]} 17... Kh8 {[%clk 0:02:22]} 18. a4 {[%clk
0:03:21.7]} 18... Bc6 {[%clk 0:01:45.2]} 19. axb5 {[%clk 0:03:17]} 19... axb5
{[%clk 0:01:45.1]} 20. e5 {[%clk 0:03:01.2]} 20... f5 {[%clk 0:01:38.7]} 21. Ng5
{[%clk 0:02:49.3]} 21... Ra7 {[%clk 0:00:49.8]} 22. Rxd8+ {[%clk 0:02:37.1]}
22... Qxd8 {[%clk 0:00:49.7]} 23. Qh5 {[%clk 0:02:32.8]} 23... Qg8 {[%clk
0:00:42.3]} 24. Rd1 {[%clk 0:02:20.1]} 24... Rd7 {[%clk 0:00:16.3]} 25. Rxd7
{[%clk 0:02:17.6]} 25... Bxd7 {[%clk 0:00:15.8]} 26. Nxf7+ {[%clk 0:02:13.6]}
26... Kg7 {[%clk 0:00:14.7]} 27. Nh6 {[%clk 0:01:55.5]} 27... Qf8 {[%clk
0:00:00.9]} 28. Qg5+ {[%clk 0:01:47.9]} 1-0